Workbook

Sheet Viz
B2: Clickable | D2: Average Salary in USD | G2: Average Years Experience | K2: Average Excel Hours per Day
B5: Oceana
B6: North America
B7: Europe
B8: Africa
B9: Middle East
B10: South America
B11: Asia
B12: All Regions
C13: * South America includes Central America and The Caribbean
B16: Top Mgmt
B17: Controllers
B18: Consultants
B19: Specialists
B20: Engineers
B21: Managers
B22: Analysts
B23: Accountants
B24: Miscellaneous
B25: Reporting
B26: All Jobs
B28: All versus | C28: =region_filter&", "&job_filter -> North America, Analysts | M28: Click the names of the regions and job types above to filter the information below
B30: Salary vs Experience | F30: Salary Distribution (by thousands USD) | J30: Statistics for
B32: Years Experience | J32: =C28 -> North America, Analysts
J33: Respondent Count | M33: =SUBTOTAL(3,Table2[Salary in USD]) -> 329
J34: Average Experience | M34: =IFERROR(TEXT(SUBTOTAL(1,Table2[Years of Experience]),"0.0")& " Years","n/a") -> 8.8 Years
J35: Average Excel/Day | M35: =IFERROR(TEXT(SUBTOTAL(1,Table2[Hours]),"0.0")& " Hours","n/a") -> 5.1 Hours
J36: Average Salary | M36: =IFERROR(SUBTOTAL(1,Table2[Salary in USD]),"n/a") -> 62637.34918
J37: Top Salary | M37: =IFERROR(SUBTOTAL(4,Table2[Salary in USD]),"n/a") -> 245840.3808
J38: Bottom Salary | M38: =IFERROR(SUBTOTAL(5,Table2[Salary in USD]),"n/a") -> 10000
F40: Experience Distribution (by years) | J40: Excel per Day Distribution (by hours)
B48: Salary in USD

Sheet Calc
D2: Salary | E2: Hours | G2: Experience | I2: Salary | J2: Hours
B3: Region | C3: n | D3: avg | E3: avg | F3: exp n | G3: avg | I3: median | J3: median
B4: Oceana | C4: =COUNTIF(Data!$C$2:$C$1884,$B4) -> 96 | D4: =SUMIF(Data!$C$2:$C$1884,$B4,Data!$D$2:$D$1884)/C4 -> 89331.05565 | E4: =SUMIF(Data!$C$2:$C$1884,$B4,Data!$E$2:$E$1884)/C4 -> 4.317708333 | F4: =COUNTIFS(Data!$C$2:$C$1884,$B4,Data!$F$2:$F$1884,">0") -> 89 | G4: =SUMIF(Data!$C$2:$C$1884,$B4,Data!$F$2:$F$1884)/F4 -> 10.48876404 | I4: =MEDIAN(IF(Data!$C$2:$C$1884=$B4,Data!$D$2:$D$1884)) -> 86692.32079 | J4: =MEDIAN(IF(Data!$C$2:$C$1884=$B4,Data!$E$2:$E$1884)) -> 5
B5: North America | C5: =COUNTIF(Data!$C$2:$C$1884,$B5) -> 677 | D5: =SUMIF(Data!$C$2:$C$1884,$B5,Data!$D$2:$D$1884)/C5 -> 72539.90643 | E5: =SUMIF(Data!$C$2:$C$1884,$B5,Data!$E$2:$E$1884)/C5 -> 4.738552437 | F5: =COUNTIFS(Data!$C$2:$C$1884,$B5,Data!$F$2:$F$1884,">0") -> 362 | G5: =SUMIF(Data!$C$2:$C$1884,$B5,Data!$F$2:$F$1884)/F5 -> 10.21823204 | I5: =MEDIAN(IF(Data!$C$2:$C$1884=$B5,Data!$D$2:$D$1884)) -> 65000 | J5: =MEDIAN(IF(Data!$C$2:$C$1884=$B5,Data!$E$2:$E$1884)) -> 5
B6: Europe | C6: =COUNTIF(Data!$C$2:$C$1884,$B6) -> 313 | D6: =SUMIF(Data!$C$2:$C$1884,$B6,Data!$D$2:$D$1884)/C6 -> 63084.83296 | E6: =SUMIF(Data!$C$2:$C$1884,$B6,Data!$E$2:$E$1884)/C6 -> 4.75399361 | F6: =COUNTIFS(Data!$C$2:$C$1884,$B6,Data!$F$2:$F$1884,">0") -> 224 | G6: =SUMIF(Data!$C$2:$C$1884,$B6,Data!$F$2:$F$1884)/F6 -> 10.34508929 | I6: =MEDIAN(IF(Data!$C$2:$C$1884=$B6,Data!$D$2:$D$1884)) -> 53590.06125 | J6: =MEDIAN(IF(Data!$C$2:$C$1884=$B6,Data!$E$2:$E$1884)) -> 5
B7: Africa | C7: =COUNTIF(Data!$C$2:$C$1884,$B7) -> 37 | D7: =SUMIF(Data!$C$2:$C$1884,$B7,Data!$D$2:$D$1884)/C7 -> 42575.94066 | E7: =SUMIF(Data!$C$2:$C$1884,$B7,Data!$E$2:$E$1884)/C7 -> 5.864864865 | F7: =COUNTIFS(Data!$C$2:$C$1884,$B7,Data!$F$2:$F$1884,">0") -> 31 | G7: =SUMIF(Data!$C$2:$C$1884,$B7,Data!$F$2:$F$1884)/F7 -> 9.838709677 | I7: =MEDIAN(IF(Data!$C$2:$C$1884=$B7,Data!$D$2:$D$1884)) -> 24864 | J7: =MEDIAN(IF(Data!$C$2:$C$1884=$B7,Data!$E$2:$E$1884)) -> 5
B8: Middle East | C8: =COUNTIF(Data!$C$2:$C$1884,$B8) -> 51 | D8: =SUMIF(Data!$C$2:$C$1884,$B8,Data!$D$2:$D$1884)/C8 -> 42213.80929 | E8: =SUMIF(Data!$C$2:$C$1884,$B8,Data!$E$2:$E$1884)/C8 -> 4.794117647 | F8: =COUNTIFS(Data!$C$2:$C$1884,$B8,Data!$F$2:$F$1884,">0") -> 39 | G8: =SUMIF(Data!$C$2:$C$1884,$B8,Data!$F$2:$F$1884)/F8 -> 10.32051282 | I8: =MEDIAN(IF(Data!$C$2:$C$1884=$B8,Data!$D$2:$D$1884)) -> 36000 | J8: =MEDIAN(IF(Data!$C$2:$C$1884=$B8,Data!$E$2:$E$1884)) -> 5
B9: South America | C9: =COUNTIF(Data!$C$2:$C$1884,$B9) -> 49 | D9: =SUMIF(Data!$C$2:$C$1884,$B9,Data!$D$2:$D$1884)/C9 -> 32472.21793 | E9: =SUMIF(Data!$C$2:$C$1884,$B9,Data!$E$2:$E$1884)/C9 -> 5.755102041 | F9: =COUNTIFS(Data!$C$2:$C$1884,$B9,Data!$F$2:$F$1884,">0") -> 28 | G9: =SUMIF(Data!$C$2:$C$1884,$B9,Data!$F$2:$F$1884)/F9 -> 8.321428571 | I9: =MEDIAN(IF(Data!$C$2:$C$1884=$B9,Data!$D$2:$D$1884)) -> 19200 | J9: =MEDIAN(IF(Data!$C$2:$C$1884=$B9,Data!$E$2:$E$1884)) -> 8
B10: Asia | C10: =COUNTIF(Data!$C$2:$C$1884,$B10) -> 660 | D10: =SUMIF(Data!$C$2:$C$1884,$B10,Data!$D$2:$D$1884)/C10 -> 15067.27749 | E10: =SUMIF(Data!$C$2:$C$1884,$B10,Data!$E$2:$E$1884)/C10 -> 4.875 | F10: =COUNTIFS(Data!$C$2:$C$1884,$B10,Data!$F$2:$F$1884,">0") -> 550 | G10: =SUMIF(Data!$C$2:$C$1884,$B10,Data!$F$2:$F$1884)/F10 -> 6.666 | I10: =MEDIAN(IF(Data!$C$2:$C$1884=$B10,Data!$D$2:$D$1884)) -> 9616.275011 | J10: =MEDIAN(IF(Data!$C$2:$C$1884=$B10,Data!$E$2:$E$1884)) -> 0
B11: All | C11: =COUNTA(Data!$C$2:$C$1884) -> 1883 | D11: =SUM(Data!$D$2:$D$1884)/C11 -> 49227.08795 | E11: =SUM(Data!$E$2:$E$1884)/C11 -> 4.817578332 | F11: =COUNTIF(Data!$F$2:$F$1884,">0") -> 1323 | G11: =SUM(Data!$F$2:$F$1884)/F11 -> 8.735147392
D13: Salary | E13: Hours | F13: Experience | G13: Experience | I13: Salary | J13: Hours
B14: Region | C14: n | D14: avg | E14: avg | F14: exp n | G14: avg | I14: median | J14: median
B15: Top Mgmt | C15: =COUNTIF(Data!$B$2:$B$1884,$B15) -> 75 | D15: =SUMIF(Data!$B$2:$B$1884,$B15,Data!$D$2:$D$1884)/C15 -> 97265.87562 | E15: =SUMIF(Data!$B$2:$B$1884,$B15,Data!$E$2:$E$1884)/C15 -> 4.24 | F15: =COUNTIFS(Data!$B$2:$B$1884,$B15,Data!$F$2:$F$1884,">0") -> 47 | G15: =SUMIF(Data!$B$2:$B$1884,$B15,Data!$F$2:$F$1884)/F15 -> 13.41489362 | I15: =MEDIAN(IF(Data!$B$2:$B$1884=$B15,Data!$D$2:$D$1884)) -> 95000 | J15: =MEDIAN(IF(Data!$B$2:$B$1884=$B15,Data!$E$2:$E$1884)) -> 5
B16: Controllers | C16: =COUNTIF(Data!$B$2:$B$1884,$B16) -> 67 | D16: =SUMIF(Data!$B$2:$B$1884,$B16,Data!$D$2:$D$1884)/C16 -> 65103.92903 | E16: =SUMIF(Data!$B$2:$B$1884,$B16,Data!$E$2:$E$1884)/C16 -> 4.962686567 | F16: =COUNTIFS(Data!$B$2:$B$1884,$B16,Data!$F$2:$F$1884,">0") -> 55 | G16: =SUMIF(Data!$B$2:$B$1884,$B16,Data!$F$2:$F$1884)/F16 -> 11.8 | I16: =MEDIAN(IF(Data!$B$2:$B$1884=$B16,Data!$D$2:$D$1884)) -> 57167.97475 | J16: =MEDIAN(IF(Data!$B$2:$B$1884=$B16,Data!$E$2:$E$1884)) -> 5
B17: Consultants | C17: =COUNTIF(Data!$B$2:$B$1884,$B17) -> 90 | D17: =SUMIF(Data!$B$2:$B$1884,$B17,Data!$D$2:$D$1884)/C17 -> 62950.73322 | E17: =SUMIF(Data!$B$2:$B$1884,$B17,Data!$E$2:$E$1884)/C17 -> 4.644444444 | F17: =COUNTIFS(Data!$B$2:$B$1884,$B17,Data!$F$2:$F$1884,">0") -> 56 | G17: =SUMIF(Data!$B$2:$B$1884,$B17,Data!$F$2:$F$1884)/F17 -> 9.553571429 | I17: =MEDIAN(IF(Data!$B$2:$B$1884=$B17,Data!$D$2:$D$1884)) -> 54847.71058 | J17: =MEDIAN(IF(Data!$B$2:$B$1884=$B17,Data!$E$2:$E$1884)) -> 5
B18: Specialists | C18: =COUNTIF(Data!$B$2:$B$1884,$B18) -> 51 | D18: =SUMIF(Data!$B$2:$B$1884,$B18,Data!$D$2:$D$1884)/C18 -> 59812.96927 | E18: =SUMIF(Data!$B$2:$B$1884,$B18,Data!$E$2:$E$1884)/C18 -> 4.843137255 | F18: =COUNTIFS(Data!$B$2:$B$1884,$B18,Data!$F$2:$F$1884,">0") -> 27 | G18: =SUMIF(Data!$B$2:$B$1884,$B18,Data!$F$2:$F$1884)/F18 -> 9.259259259 | I18: =MEDIAN(IF(Data!$B$2:$B$1884=$B18,Data!$D$2:$D$1884)) -> 49000 | J18: =MEDIAN(IF(Data!$B$2:$B$1884=$B18,Data!$E$2:$E$1884)) -> 5
B19: Engineers | C19: =COUNTIF(Data!$B$2:$B$1884,$B19) -> 74 | D19: =SUMIF(Data!$B$2:$B$1884,$B19,Data!$D$2:$D$1884)/C19 -> 51715.15142 | E19: =SUMIF(Data!$B$2:$B$1884,$B19,Data!$E$2:$E$1884)/C19 -> 3.783783784 | F19: =COUNTIFS(Data!$B$2:$B$1884,$B19,Data!$F$2:$F$1884,">0") -> 49 | G19: =SUMIF(Data!$B$2:$B$1884,$B19,Data!$F$2:$F$1884)/F19 -> 7.93877551 | I19: =MEDIAN(IF(Data!$B$2:$B$1884=$B19,Data!$D$2:$D$1884)) -> 49430.76322 | J19: =MEDIAN(IF(Data!$B$2:$B$1884=$B19,Data!$E$2:$E$1884)) -> 2.5
B20: Managers | C20: =COUNTIF(Data!$B$2:$B$1884,$B20) -> 558 | D20: =SUMIF(Data!$B$2:$B$1884,$B20,Data!$D$2:$D$1884)/C20 -> 46488.24071 | E20: =SUMIF(Data!$B$2:$B$1884,$B20,Data!$E$2:$E$1884)/C20 -> 4.422043011 | F20: =COUNTIFS(Data!$B$2:$B$1884,$B20,Data!$F$2:$F$1884,">0") -> 389 | G20: =SUMIF(Data!$B$2:$B$1884,$B20,Data!$F$2:$F$1884)/F20 -> 10.00282776 | I20: =MEDIAN(IF(Data!$B$2:$B$1884=$B20,Data!$D$2:$D$1884)) -> 40000 | J20: =MEDIAN(IF(Data!$B$2:$B$1884=$B20,Data!$E$2:$E$1884)) -> 5
B21: Analysts | C21: =COUNTIF(Data!$B$2:$B$1884,$B21) -> 743 | D21: =SUMIF(Data!$B$2:$B$1884,$B21,Data!$D$2:$D$1884)/C21 -> 46295.76942 | E21: =SUMIF(Data!$B$2:$B$1884,$B21,Data!$E$2:$E$1884)/C21 -> 5.104979812 | F21: =COUNTIFS(Data!$B$2:$B$1884,$B21,Data!$F$2:$F$1884,">0") -> 522 | G21: =SUMIF(Data!$B$2:$B$1884,$B21,Data!$F$2:$F$1884)/F21 -> 7.38908046 | I21: =MEDIAN(IF(Data!$B$2:$B$1884=$B21,Data!$D$2:$D$1884)) -> 45000 | J21: =MEDIAN(IF(Data!$B$2:$B$1884=$B21,Data!$E$2:$E$1884)) -> 5
B22: Accountants | C22: =COUNTIF(Data!$B$2:$B$1884,$B22) -> 135 | D22: =SUMIF(Data!$B$2:$B$1884,$B22,Data!$D$2:$D$1884)/C22 -> 46001.75981 | E22: =SUMIF(Data!$B$2:$B$1884,$B22,Data!$E$2:$E$1884)/C22 -> 5.133333333 | F22: =COUNTIFS(Data!$B$2:$B$1884,$B22,Data!$F$2:$F$1884,">0") -> 101 | G22: =SUMIF(Data!$B$2:$B$1884,$B22,Data!$F$2:$F$1884)/F22 -> 9.336633663 | I22: =MEDIAN(IF(Data!$B$2:$B$1884=$B22,Data!$D$2:$D$1884)) -> 45000 | J22: =MEDIAN(IF(Data!$B$2:$B$1884=$B22,Data!$E$2:$E$1884)) -> 5
B23: Miscellaneous | C23: =COUNTIF(Data!$B$2:$B$1884,$B23) -> 7 | D23: =SUMIF(Data!$B$2:$B$1884,$B23,Data!$D$2:$D$1884)/C23 -> 45952.33422 | E23: =SUMIF(Data!$B$2:$B$1884,$B23,Data!$E$2:$E$1884)/C23 -> 4.071428571 | F23: =COUNTIFS(Data!$B$2:$B$1884,$B23,Data!$F$2:$F$1884,">0") -> 6 | G23: =SUMIF(Data!$B$2:$B$1884,$B23,Data!$F$2:$F$1884)/F23 -> 6.166666667 | I23: =MEDIAN(IF(Data!$B$2:$B$1884=$B23,Data!$D$2:$D$1884)) -> 41712.23119 | J23: =MEDIAN(IF(Data!$B$2:$B$1884=$B23,Data!$E$2:$E$1884)) -> 5
B24: Reporting | C24: =COUNTIF(Data!$B$2:$B$1884,$B24) -> 83 | D24: =SUMIF(Data!$B$2:$B$1884,$B24,Data!$D$2:$D$1884)/C24 -> 19574.15853 | E24: =SUMIF(Data!$B$2:$B$1884,$B24,Data!$E$2:$E$1884)/C24 -> 5.951807229 | F24: =COUNTIFS(Data!$B$2:$B$1884,$B24,Data!$F$2:$F$1884,">0") -> 71 | G24: =SUMIF(Data!$B$2:$B$1884,$B24,Data!$F$2:$F$1884)/F24 -> 5.28028169 | I24: =MEDIAN(IF(Data!$B$2:$B$1884=$B24,Data!$D$2:$D$1884)) -> 7123.166675 | J24: =MEDIAN(IF(Data!$B$2:$B$1884=$B24,Data!$E$2:$E$1884)) -> 5
B25: All | C25: =COUNTA(Data!$C$2:$C$1884) -> 1883 | D25: =SUM(Data!$D$2:$D$1884)/C25 -> 49227.08795 | E25: =SUM(Data!$E$2:$E$1884)/C25 -> 4.817578332 | F25: =COUNTIF(Data!$F$2:$F$1884,">0") -> 1323 | G25: =SUM(Data!$F$2:$F$1884)/F11 -> 8.735147392
B28: Region Filter | C28: North America
B29: Job Filter | C29: Analysts
B32: Hours
D33: Filtered | F33: Unfiltered
B34: Bin | C34: Name | D34: Count | E34: % | F34: Count | G34: % | I34: Hour Translation Table
B35: Excel ?!? What Excel? | C35: Excel, what Excel? | D35: =SUMPRODUCT(SUBTOTAL(3,OFFSET(Data!$I$2:$I$1884,ROW(Data!$I$2:$I$1884)-ROW(Data!$I$2),0,1)),--(Data!$I$2:$I$1884=B35)) -> 3 | E35: =D35/$D$40 -> 0.009118541033 | F35: =COUNTIF(Table2[How many hours of a day you work on Excel],B35) -> 7 | G35: =F35/$F$40 -> 0.003717472119 | I35: 1 or 2 hours a day | J35: 1.5
B36: 1 or 2 hours a day | C36: 1 or 2 hours a day | D36: =SUMPRODUCT(SUBTOTAL(3,OFFSET(Data!$I$2:$I$1884,ROW(Data!$I$2:$I$1884)-ROW(Data!$I$2),0,1)),--(Data!$I$2:$I$1884=B36)) -> 19 | E36: =D36/$D$40 -> 0.05775075988 | F36: =COUNTIF(Table2[How many hours of a day you work on Excel],B36) -> 174 | G36: 0.09240573553 | I36: 2 to 3 hours per day | J36: 2.5
B37: 2 to 3 hours per day | C37: 2 to 3 hours a day | D37: =SUMPRODUCT(SUBTOTAL(3,OFFSET(Data!$I$2:$I$1884,ROW(Data!$I$2:$I$1884)-ROW(Data!$I$2),0,1)),--(Data!$I$2:$I$1884=B37)) -> 61 | E37: =D37/$D$40 -> 0.1854103343 | F37: =COUNTIF(Table2[How many hours of a day you work on Excel],B37) -> 451 | G37: 0.239511418 | I37: 4 to 6 hours a day | J37: 5
B38: 4 to 6 hours a day | C38: 4 to 6 hours a day | D38: =SUMPRODUCT(SUBTOTAL(3,OFFSET(Data!$I$2:$I$1884,ROW(Data!$I$2:$I$1884)-ROW(Data!$I$2),0,1)),--(Data!$I$2:$I$1884=B38)) -> 162 | E38: =D38/$D$40 -> 0.4924012158 | F38: =COUNTIF(Table2[How many hours of a day you work on Excel],B38) -> 775 | G38: 0.4115772703 | I38: All the 8 hours baby, all the 8! | J38: 8
B39: All the 8 hours baby, all the 8! | C39: All the 8 hours baby! | D39: =SUMPRODUCT(SUBTOTAL(3,OFFSET(Data!$I$2:$I$1884,ROW(Data!$I$2:$I$1884)-ROW(Data!$I$2),0,1)),--(Data!$I$2:$I$1884=B39)) -> 84 | E39: =D39/$D$40 -> 0.2553191489 | F39: =COUNTIF(Table2[How many hours of a day you work on Excel],B39) -> 476 | G39: =F39/$F$40 -> 0.2527881041 | I39: Excel ?!? What Excel? | J39: 0
D40: =SUM(D35:D39) -> 329 | E40: =D40/$D$40 -> 1 | F40: =SUM(F35:F39) -> 1883 | G40: =F40/$F$40 -> 1
B42: Salary
B43: 10000 | D43: Filtered | F43: Unfiltered
B44: Bin | C44: Name | D44: Count | E44: % | F44: Count | G44: %
B45: 0 | C45: 0-9 | D45: =SUMPRODUCT(SUBTOTAL(3,OFFSET(Data!$D$2:$D$1884,ROW(Data!$D$2:$D$1884)-ROW(Data!$D$2),0,1)),--(Data!$D$2:$D$1884>=B45))-SUM(D46:$D$61) -> 0 | E45: =D45/$D$62 -> 0 | F45: =COUNTIF(Table2[Salary in USD],">="&B45)-SUM(F46:$F$60) -> 360 | G45: =F45/$F$62 -> 0.1911842804 | I45: =SUMPRODUCT(SUBTOTAL(3,OFFSET(Data!$D$1:$D$1883,ROW(Data!$D$2:$D$1884)-ROW(Data!$D$2),0,1)),--(Data!$D$2:$D$1884>=B45)) -> 329
B46: =B45+$B$43 -> 10000 | C46: =B46/1000&" " -> 10 | D46: =SUMPRODUCT(SUBTOTAL(3,OFFSET(Data!$D$2:$D$1884,ROW(Data!$D$2:$D$1884)-ROW(Data!$D$2),0,1)),--(Data!$D$2:$D$1884>=B46))-SUM(D47:$D$61) -> 3 | E46: =D46/$D$62 -> 0.009118541033 | F46: =COUNTIF(Table2[Salary in USD],">="&B46)-SUM(F47:$F$60) -> 254 | G46: =F46/$F$62 -> 0.1348911312
B47: =B46+$B$43 -> 20000 | C47: =B47/1000&" " -> 20 | D47: =SUMPRODUCT(SUBTOTAL(3,OFFSET(Data!$D$2:$D$1884,ROW(Data!$D$2:$D$1884)-ROW(Data!$D$2),0,1)),--(Data!$D$2:$D$1884>=B47))-SUM(D48:$D$61) -> 5 | E47: =D47/$D$62 -> 0.01519756839 | F47: =COUNTIF(Table2[Salary in USD],">="&B47)-SUM(F48:$F$60) -> 114 | G47: =F47/$F$62 -> 0.06054168879
B48: =B47+$B$43 -> 30000 | C48: =B48/1000&" " -> 30 | D48: =SUMPRODUCT(SUBTOTAL(3,OFFSET(Data!$D$2:$D$1884,ROW(Data!$D$2:$D$1884)-ROW(Data!$D$2),0,1)),--(Data!$D$2:$D$1884>=B48))-SUM(D49:$D$61) -> 23 | E48: =D48/$D$62 -> 0.06990881459 | F48: =COUNTIF(Table2[Salary in USD],">="&B48)-SUM(F49:$F$60) -> 124 | G48: =F48/$F$62 -> 0.06585236325
B49: =B48+$B$43 -> 40000 | C49: =B49/1000&" " -> 40 | D49: =SUMPRODUCT(SUBTOTAL(3,OFFSET(Data!$D$2:$D$1884,ROW(Data!$D$2:$D$1884)-ROW(Data!$D$2),0,1)),--(Data!$D$2:$D$1884>=B49))-SUM(D50:$D$61) -> 67 | E49: =D49/$D$62 -> 0.2036474164 | F49: =COUNTIF(Table2[Salary in USD],">="&B49)-SUM(F50:$F$60) -> 190 | G49: =F49/$F$62 -> 0.1009028147
B50: =B49+$B$43 -> 50000 | C50: =B50/1000&" " -> 50 | D50: =SUMPRODUCT(SUBTOTAL(3,OFFSET(Data!$D$2:$D$1884,ROW(Data!$D$2:$D$1884)-ROW(Data!$D$2),0,1)),--(Data!$D$2:$D$1884>=B50))-SUM(D51:$D$61) -> 58 | E50: =D50/$D$62 -> 0.1762917933 | F50: =COUNTIF(Table2[Salary in USD],">="&B50)-SUM(F51:$F$60) -> 180 | G50: =F50/$F$62 -> 0.0955921402
B51: =B50+$B$43 -> 60000 | C51: =B51/1000&" " -> 60 | D51: =SUMPRODUCT(SUBTOTAL(3,OFFSET(Data!$D$2:$D$1884,ROW(Data!$D$2:$D$1884)-ROW(Data!$D$2),0,1)),--(Data!$D$2:$D$1884>=B51))-SUM(D52:$D$61) -> 66 | E51: =D51/$D$62 -> 0.2006079027 | F51: =COUNTIF(Table2[Salary in USD],">="&B51)-SUM(F52:$F$60) -> 165 | G51: =F51/$F$62 -> 0.08762612852
B52: =B51+$B$43 -> 70000 | C52: =B52/1000&" " -> 70 | D52: =SUMPRODUCT(SUBTOTAL(3,OFFSET(Data!$D$2:$D$1884,ROW(Data!$D$2:$D$1884)-ROW(Data!$D$2),0,1)),--(Data!$D$2:$D$1884>=B52))-SUM(D53:$D$61) -> 44 | E52: =D52/$D$62 -> 0.1337386018 | F52: =COUNTIF(Table2[Salary in USD],">="&B52)-SUM(F53:$F$60) -> 125 | G52: =F52/$F$62 -> 0.0663834307
B53: =B52+$B$43 -> 80000 | C53: =B53/1000&" " -> 80 | D53: =SUMPRODUCT(SUBTOTAL(3,OFFSET(Data!$D$2:$D$1884,ROW(Data!$D$2:$D$1884)-ROW(Data!$D$2),0,1)),--(Data!$D$2:$D$1884>=B53))-SUM(D54:$D$61) -> 26 | E53: =D53/$D$62 -> 0.07902735562 | F53: =COUNTIF(Table2[Salary in USD],">="&B53)-SUM(F54:$F$60) -> 97 | G53: =F53/$F$62 -> 0.05151354222
B54: =B53+$B$43 -> 90000 | C54: =B54/1000&" " -> 90 | D54: =SUMPRODUCT(SUBTOTAL(3,OFFSET(Data!$D$2:$D$1884,ROW(Data!$D$2:$D$1884)-ROW(Data!$D$2),0,1)),--(Data!$D$2:$D$1884>=B54))-SUM(D55:$D$61) -> 18 | E54: =D54/$D$62 -> 0.0547112462 | F54: =COUNTIF(Table2[Salary in USD],">="&B54)-SUM(F55:$F$60) -> 73 | G54: =F54/$F$62 -> 0.03876792353
B55: =B54+$B$43 -> 100000 | C55: =B55/1000&" " -> 100 | D55: =SUMPRODUCT(SUBTOTAL(3,OFFSET(Data!$D$2:$D$1884,ROW(Data!$D$2:$D$1884)-ROW(Data!$D$2),0,1)),--(Data!$D$2:$D$1884>=B55))-SUM(D56:$D$61) -> 8 | E55: =D55/$D$62 -> 0.02431610942 | F55: =COUNTIF(Table2[Salary in USD],">="&B55)-SUM(F56:$F$60) -> 63 | G55: =F55/$F$62 -> 0.03345724907
B56: =B55+$B$43 -> 110000 | C56: =B56/1000&" " -> 110 | D56: =SUMPRODUCT(SUBTOTAL(3,OFFSET(Data!$D$2:$D$1884,ROW(Data!$D$2:$D$1884)-ROW(Data!$D$2),0,1)),--(Data!$D$2:$D$1884>=B56))-SUM(D57:$D$61) -> 4 | E56: =D56/$D$62 -> 0.01215805471 | F56: =COUNTIF(Table2[Salary in USD],">="&B56)-SUM(F57:$F$60) -> 26 | G56: =F56/$F$62 -> 0.01380775358
B57: =B56+$B$43 -> 120000 | C57: =B57/1000&" " -> 120 | D57: =SUMPRODUCT(SUBTOTAL(3,OFFSET(Data!$D$2:$D$1884,ROW(Data!$D$2:$D$1884)-ROW(Data!$D$2),0,1)),--(Data!$D$2:$D$1884>=B57))-SUM(D58:$D$61) -> 2 | E57: =D57/$D$62 -> 0.006079027356 | F57: =COUNTIF(Table2[Salary in USD],">="&B57)-SUM(F58:$F$60) -> 36 | G57: =F57/$F$62 -> 0.01911842804
B58: =B57+$B$43 -> 130000 | C58: =B58/1000&" " -> 130 | D58: =SUMPRODUCT(SUBTOTAL(3,OFFSET(Data!$D$2:$D$1884,ROW(Data!$D$2:$D$1884)-ROW(Data!$D$2),0,1)),--(Data!$D$2:$D$1884>=B58))-SUM(D59:$D$61) -> 1 | E58: =D58/$D$62 -> 0.003039513678 | F58: =COUNTIF(Table2[Salary in USD],">="&B58)-SUM(F59:$F$60) -> 14 | G58: =F58/$F$62 -> 0.007434944238
B59: =B58+$B$43 -> 140000 | C59: =B59/1000&" " -> 140 | D59: =SUMPRODUCT(SUBTOTAL(3,OFFSET(Data!$D$2:$D$1884,ROW(Data!$D$2:$D$1884)-ROW(Data!$D$2),0,1)),--(Data!$D$2:$D$1884>=B59))-SUM(D60:$D$61) -> 1 | E59: =D59/$D$62 -> 0.003039513678 | F59: =COUNTIF(Table2[Salary in USD],">="&B59)-SUM(F60:$F$60) -> 11 | G59: =F59/$F$62 -> 0.005841741901
B60: =B59+$B$43 -> 150000 | C60: =B60/1000&"+" -> 150+ | D60: =SUMPRODUCT(SUBTOTAL(3,OFFSET(Data!$D$2:$D$1884,ROW(Data!$D$2:$D$1884)-ROW(Data!$D$2),0,1)),--(Data!$D$2:$D$1884>=B60))-SUM(D61:$D$61) -> 3 | E60: =D60/$D$62 -> 0.009118541033 | F60: =COUNTIF(Table2[Salary in USD],">="&B60) -> 51 | G60: =F60/$F$62 -> 0.02708443972
D62: =SUM(D45:D60) -> 329 | E62: =D62/$D$62 -> 1 | F62: =SUM(F45:F60) -> 1883 | G62: =F62/$F$62 -> 1
B65: Experience
B66: 5 | D66: Filtered | F66: Unfiltered
B67: Bin | C67: Name | D67: Count | E67: % | F67: Count | G67: %
B68: 0 | C68: <5 | D68: =SUMPRODUCT(SUBTOTAL(3,OFFSET(Data!$F$2:$F$1884,ROW(Data!$F$2:$F$1884)-ROW(Data!$F$2),0,1)),--(Data!$F$2:$F$1884>=B68))-SUM(D69:$D$77) -> 60 | E68: =D68/$D$78 -> 0.3260869565 | F68: =COUNTIF(Table2[Years of Experience],">="&B68)-SUM(F69:$F$77) -> 420 | G68: =F68/$F$78 -> 0.3146067416
B69: =B68+$B$66 -> 5 | C69: =B69 -> 5 | D69: =SUMPRODUCT(SUBTOTAL(3,OFFSET(Data!$F$2:$F$1884,ROW(Data!$F$2:$F$1884)-ROW(Data!$F$2),0,1)),--(Data!$F$2:$F$1884>=B69))-SUM(D70:$D$77) -> 52 | E69: =D69/$D$78 -> 0.2826086957 | F69: =COUNTIF(Table2[Years of Experience],">="&B69)-SUM(F70:$F$77) -> 417 | G69: =F69/$F$78 -> 0.3123595506
B70: =B69+$B$66 -> 10 | C70: 10 | D70: =SUMPRODUCT(SUBTOTAL(3,OFFSET(Data!$F$2:$F$1884,ROW(Data!$F$2:$F$1884)-ROW(Data!$F$2),0,1)),--(Data!$F$2:$F$1884>=B70))-SUM(D71:$D$77) -> 36 | E70: =D70/$D$78 -> 0.1956521739 | F70: =COUNTIF(Table2[Years of Experience],">="&B70)-SUM(F71:$F$77) -> 238 | G70: =F70/$F$78 -> 0.1782771536
B71: 15 | C71: 15 | D71: =SUMPRODUCT(SUBTOTAL(3,OFFSET(Data!$F$2:$F$1884,ROW(Data!$F$2:$F$1884)-ROW(Data!$F$2),0,1)),--(Data!$F$2:$F$1884>=B71))-SUM(D72:$D$77) -> 17 | E71: =D71/$D$78 -> 0.09239130435 | F71: =COUNTIF(Table2[Years of Experience],">="&B71)-SUM(F72:$F$77) -> 117 | G71: =F71/$F$78 -> 0.08764044944
B72: 20 | C72: 20 | D72: =SUMPRODUCT(SUBTOTAL(3,OFFSET(Data!$F$2:$F$1884,ROW(Data!$F$2:$F$1884)-ROW(Data!$F$2),0,1)),--(Data!$F$2:$F$1884>=B72))-SUM(D73:$D$77) -> 9 | E72: =D72/$D$78 -> 0.04891304348 | F72: =COUNTIF(Table2[Years of Experience],">="&B72)-SUM(F73:$F$77) -> 85 | G72: =F72/$F$78 -> 0.06367041199
B73: 25 | C73: 25 | D73: =SUMPRODUCT(SUBTOTAL(3,OFFSET(Data!$F$2:$F$1884,ROW(Data!$F$2:$F$1884)-ROW(Data!$F$2),0,1)),--(Data!$F$2:$F$1884>=B73))-SUM(D74:$D$77) -> 5 | E73: =D73/$D$78 -> 0.02717391304 | F73: =COUNTIF(Table2[Years of Experience],">="&B73)-SUM(F74:$F$77) -> 36 | G73: =F73/$F$78 -> 0.02696629213
B74: 30 | C74: 30 | D74: =SUMPRODUCT(SUBTOTAL(3,OFFSET(Data!$F$2:$F$1884,ROW(Data!$F$2:$F$1884)-ROW(Data!$F$2),0,1)),--(Data!$F$2:$F$1884>=B74))-SUM(D75:$D$77) -> 5 | E74: =D74/$D$78 -> 0.02717391304 | F74: =COUNTIF(Table2[Years of Experience],">="&B74)-SUM(F75:$F$77) -> 18 | G74: =F74/$F$78 -> 0.01348314607
B75: 35 | C75: 35 | D75: =SUMPRODUCT(SUBTOTAL(3,OFFSET(Data!$F$2:$F$1884,ROW(Data!$F$2:$F$1884)-ROW(Data!$F$2),0,1)),--(Data!$F$2:$F$1884>=B75))-SUM(D76:$D$77) -> 0 | E75: =D75/$D$78 -> 0 | F75: =COUNTIF(Table2[Years of Experience],">="&B75)-SUM(F76:$F$77) -> 3 | G75: =F75/$F$78 -> 0.002247191011
B76: 40 | C76: 40 | D76: =SUMPRODUCT(SUBTOTAL(3,OFFSET(Data!$F$2:$F$1884,ROW(Data!$F$2:$F$1884)-ROW(Data!$F$2),0,1)),--(Data!$F$2:$F$1884>=B76))-SUM(D77:$D$77) -> 0 | E76: =D76/$D$78 -> 0 | F76: =COUNTIF(Table2[Years of Experience],">="&B76)-SUM(F77:$F$77) -> 1 | G76: =F76/$F$78 -> 0.0007490636704
B77: 45 | C77: 45
D78: =SUM(D68:D77) -> 184 | E78: =D78/$D$78 -> 1 | F78: =SUM(F68:F77) -> 1335 | G78: =F78/$D$78 -> 7.255434783

Sheet Data
A1: Unique ID | B1: Job Type | C1: Region 2 | D1: Salary in USD | E1: Hours | F1: Years of Experience | G1: clean Country | H1: Your Job Title | I1: How many hours of a day you work on Excel
A2: ID0001 | B2: Analysts | C2: Asia | D2: 5846 | E2: =VLOOKUP(I2,Calc!$I$35:$J$39,2,FALSE) -> 5 | G2: India | H2: MIS Analyst | I2: 4 to 6 hours a day
A3: ID0002 | B3: Controllers | C3: Europe | D3: 15000 | E3: =VLOOKUP(I3,Calc!$I$35:$J$39,2,FALSE) -> 8 | G3: Croatia | H3: cost control | I3: All the 8 hours baby, all the 8!
A4: ID0003 | B4: Analysts | C4: North America | D4: 58000 | E4: =VLOOKUP(I4,Calc!$I$35:$J$39,2,FALSE) -> 8 | G4: USA | H4: Financial Analyst | I4: All the 8 hours baby, all the 8!
A5: ID0004 | B5: Controllers | C5: Asia | D5: 48000 | E5: =VLOOKUP(I5,Calc!$I$35:$J$39,2,FALSE) -> 2.5 | G5: Pakistan | H5: Quality Control | I5: 2 to 3 hours per day
A6: ID0005 | B6: Engineers | C6: North America | D6: 54000 | E6: =VLOOKUP(I6,Calc!$I$35:$J$39,2,FALSE) -> 8 | G6: USA | H6: Quality Engineer | I6: All the 8 hours baby, all the 8!
A7: ID0006 | B7: Analysts | C7: Europe | D7: 41731 | E7: =VLOOKUP(I7,Calc!$I$35:$J$39,2,FALSE) -> 8 | G7: Iceland | H7: Analyst | I7: All the 8 hours baby, all the 8!
A8: ID0007 | B8: Managers | C8: Europe | D8: 184207.9187 | E8: =VLOOKUP(I8,Calc!$I$35:$J$39,2,FALSE) -> 1.5 | G8: Germany | H8: senior project manager | I8: 1 or 2 hours a day
A9: ID0008 | B9: Analysts | C9: Europe | D9: 12000 | E9: =VLOOKUP(I9,Calc!$I$35:$J$39,2,FALSE) -> 8 | G9: Ukraine | H9: Assistant SP&A | I9: All the 8 hours baby, all the 8!
A10: ID0009 | B10: Top Mgmt | C10: Europe | D10: 44000 | E10: =VLOOKUP(I10,Calc!$I$35:$J$39,2,FALSE) -> 1.5 | G10: Portugal | H10: CFO | I10: 1 or 2 hours a day
A11: ID0010 | B11: Accountants | C11: Asia | D11: 12227.4302 | E11: =VLOOKUP(I11,Calc!$I$35:$J$39,2,FALSE) -> 8 | G11: Pakistan | H11: Audit Trainee | I11: All the 8 hours baby, all the 8!
A12: ID0011 | B12: Specialists | C12: Europe | D12: 65616.13102 | E12: =VLOOKUP(I12,Calc!$I$35:$J$39,2,FALSE) -> 2.5 | G12: Ireland | H12: Training Specialist | I12: 2 to 3 hours per day
A13: ID0012 | B13: Engineers | C13: Europe | D13: 14000 | E13: =VLOOKUP(I13,Calc!$I$35:$J$39,2,FALSE) -> 5 | G13: Hungary | H13: quality engineer | I13: 4 to 6 hours a day
A14: ID0013 | B14: Analysts | C14: Asia | D14: 13338.1296 | E14: =VLOOKUP(I14,Calc!$I$35:$J$39,2,FALSE) -> 8 | G14: India | H14: Senion Analyst | I14: All the 8 hours baby, all the 8!
A15: ID0014 | B15: Analysts | C15: North America | D15: 49000 | E15: =VLOOKUP(I15,Calc!$I$35:$J$39,2,FALSE) -> 8 | G15: USA | H15: business analyst | I15: All the 8 hours baby, all the 8!
A16: ID0015 | B16: Engineers | C16: North America | D16: 85000 | E16: =VLOOKUP(I16,Calc!$I$35:$J$39,2,FALSE) -> 1.5 | G16: USA | H16: Project Engineer | I16: 1 or 2 hours a day
A17: ID0016 | B17: Engineers | C17: North America | D17: 75000 | E17: =VLOOKUP(I17,Calc!$I$35:$J$39,2,FALSE) -> 8 | G17: USA | H17: Sr Project Engineer | I17: All the 8 hours baby, all the 8!
A18: ID0017 | B18: Managers | C18: Europe | D18: 107000 | E18: =VLOOKUP(I18,Calc!$I$35:$J$39,2,FALSE) -> 5 | G18: Switzerland | H18: Business Development | I18: 4 to 6 hours a day
A19: ID0018 | B19: Reporting | C19: Africa | D19: 45000 | E19: =VLOOKUP(I19,Calc!$I$35:$J$39,2,FALSE) -> 8 | G19: South Africa | H19: Excel Report Writer | I19: All the 8 hours baby, all the 8!
A20: ID0019 | B20: Managers | C20: Asia | D20: 9794.354178 | E20: =VLOOKUP(I20,Calc!$I$35:$J$39,2,FALSE) -> 2.5 | G20: India | H20: AGM | I20: 2 to 3 hours per day
A21: ID0020 | B21: Managers | C21: Asia | D21: 50000 | E21: =VLOOKUP(I21,Calc!$I$35:$J$39,2,FALSE) -> 1.5 | G21: India | H21: GM | I21: 1 or 2 hours a day
A22: ID0021 | B22: Managers | C22: Asia | D22: 13500 | E22: =VLOOKUP(I22,Calc!$I$35:$J$39,2,FALSE) -> 5 | G22: India | H22: DSE Co-ordinator | I22: 4 to 6 hours a day
A23: ID0022 | B23: Analysts | C23: North America | D23: 96000 | E23: =VLOOKUP(I23,Calc!$I$35:$J$39,2,FALSE) -> 2.5 | G23: USA | H23: Analyst | I23: 2 to 3 hours per day
A24: ID0023 | B24: Managers | C24: Asia | D24: 17807.91669 | E24: =VLOOKUP(I24,Calc!$I$35:$J$39,2,FALSE) -> 5 | G24: India | H24: Manager | I24: 4 to 6 hours a day
A25: ID0024 | B25: Top Mgmt | C25: North America | D25: 75000 | E25: =VLOOKUP(I25,Calc!$I$35:$J$39,2,FALSE) -> 5 | G25: USA | H25: Marketing Director | I25: 4 to 6 hours a day
A26: ID0025 | B26: Managers | C26: North America | D26: 40000 | E26: =VLOOKUP(I26,Calc!$I$35:$J$39,2,FALSE) -> 2.5 | G26: USA | H26: sales and marketing | I26: 2 to 3 hours per day
A27: ID0026 | B27: Analysts | C27: North America | D27: 60000 | E27: =VLOOKUP(I27,Calc!$I$35:$J$39,2,FALSE) -> 8 | G27: USA | H27: Analyst II | I27: All the 8 hours baby, all the 8!
A28: ID0028 | B28: Managers | C28: Europe | D28: 41160.94182 | E28: =VLOOKUP(I28,Calc!$I$35:$J$39,2,FALSE) -> 5 | G28: Belgium | H28: Project Leader | I28: 4 to 6 hours a day
A29: ID0029 | B29: Engineers | C29: Asia | D29: 16027.12502 | E29: =VLOOKUP(I29,Calc!$I$35:$J$39,2,FALSE) -> 1.5 | G29: India | H29: Applications Engineer | I29: 1 or 2 hours a day
A30: ID0030 | B30: Managers | C30: Asia | D30: 10684.75001 | E30: =VLOOKUP(I30,Calc!$I$35:$J$39,2,FALSE) -> 5 | G30: India | H30: strategy manager | I30: 4 to 6 hours a day
A31: ID0031 | B31: Managers | C31: Europe | D31: 41000 | E31: =VLOOKUP(I31,Calc!$I$35:$J$39,2,FALSE) -> 8 | G31: Russia | H31: Chief of the department of public budget analisis and forecasting | I31: All the 8 hours baby, all the 8!
A32: ID0032 | B32: Specialists | C32: Asia | D32: 6410.850007 | E32: =VLOOKUP(I32,Calc!$I$35:$J$39,2,FALSE) -> 5 | G32: India | H32: Specialist | I32: 4 to 6 hours a day
A33: ID0033 | B33: Analysts | C33: Europe | D33: 55166.23952 | E33: =VLOOKUP(I33,Calc!$I$35:$J$39,2,FALSE) -> 8 | G33: UK | H33: Management Information Analyst | I33: All the 8 hours baby, all the 8!
A34: ID0035 | B34: Analysts | C34: Europe | D34: 19200 | E34: =VLOOKUP(I34,Calc!$I$35:$J$39,2,FALSE) -> 2.5 | G34: Poland | H34: Analyst | I34: 2 to 3 hours per day
A35: ID0036 | B35: Consultants | C35: Asia | D35: 8903.958344 | E35: =VLOOKUP(I35,Calc!$I$35:$J$39,2,FALSE) -> 8 | G35: India | H35: Senior Consultant | I35: All the 8 hours baby, all the 8!
A36: ID0037 | B36: Managers | C36: North America | D36: 150000 | E36: =VLOOKUP(I36,Calc!$I$35:$J$39,2,FALSE) -> 2.5 | G36: USA | H36: Portfolio Manager | I36: 2 to 3 hours per day
A37: ID0038 | B37: Engineers | C37: North America | D37: 69000 | E37: =VLOOKUP(I37,Calc!$I$35:$J$39,2,FALSE) -> 5 | G37: USA | H37: Design Engineer | I37: 4 to 6 hours a day
A38: ID0039 | B38: Consultants | C38: North America | D38: 30000 | E38: =VLOOKUP(I38,Calc!$I$35:$J$39,2,FALSE) -> 2.5 | G38: USA | H38: Academic Advisor | I38: 2 to 3 hours per day
A39: ID0040 | B39: Managers | C39: Asia | D39: 7123.166675 | E39: =VLOOKUP(I39,Calc!$I$35:$J$39,2,FALSE) -> 5 | G39: India | H39: Coordination | I39: 4 to 6 hours a day
A40: ID0041 | B40: Consultants | C40: Oceana | D40: 71393.67595 | E40: =VLOOKUP(I40,Calc!$I$35:$J$39,2,FALSE) -> 2.5 | G40: Australia | H40: consultant | I40: 2 to 3 hours per day
A41: ID0042 | B41: Analysts | C41: Asia | D41: 14500 | E41: =VLOOKUP(I41,Calc!$I$35:$J$39,2,FALSE) -> 5 | G41: India | H41: Business Analsyt | I41: 4 to 6 hours a day
A42: ID0043 | B42: Engineers | C42: North America | D42: 68835.30661 | E42: =VLOOKUP(I42,Calc!$I$35:$J$39,2,FALSE) -> 2.5 | G42: Canada | H42: Product Engineer | I42: 2 to 3 hours per day
A43: ID0044 | B43: Accountants | C43: North America | D43: 58000 | E43: =VLOOKUP(I43,Calc!$I$35:$J$39,2,FALSE) -> 5 | G43: USA | H43: Senior Accountant | I43: 4 to 6 hours a day
A44: ID0045 | B44: Miscellaneous | C44: North America | D44: 90000 | E44: =VLOOKUP(I44,Calc!$I$35:$J$39,2,FALSE) -> 1.5 | G44: USA | H44: Scientist | I44: 1 or 2 hours a day
A45: ID0046 | B45: Managers | C45: Asia | D45: 14246.33335 | E45: =VLOOKUP(I45,Calc!$I$35:$J$39,2,FALSE) -> 2.5 | G45: India | H45: Team Lead | I45: 2 to 3 hours per day
A46: ID0047 | B46: Analysts | C46: Europe | D46: 50437.70471 | E46: =VLOOKUP(I46,Calc!$I$35:$J$39,2,FALSE) -> 5 | G46: UK | H46: Senior intelligence analyst | I46: 4 to 6 hours a day
A47: ID0048 | B47: Consultants | C47: North America | D47: 12000 | E47: =VLOOKUP(I47,Calc!$I$35:$J$39,2,FALSE) -> 1.5 | G47: USA | H47: Freelance consultant | I47: 1 or 2 hours a day
A48: ID0049 | B48: Managers | C48: Europe | D48: 57167.97475 | E48: =VLOOKUP(I48,Calc!$I$35:$J$39,2,FALSE) -> 5 | G48: Netherlands | H48: Online Traffic Manager / Web Analist | I48: 4 to 6 hours a day
A49: ID0050 | B49: Analysts | C49: Europe | D49: 100000 | E49: =VLOOKUP(I49,Calc!$I$35:$J$39,2,FALSE) -> 8 | G49: Germany | H49: Seinor Financial Analyst | I49: All the 8 hours baby, all the 8!
A50: ID0051 | B50: Accountants | C50: North America | D50: 57000 | E50: =VLOOKUP(I50,Calc!$I$35:$J$39,2,FALSE) -> 2.5 | G50: USA | H50: Senior Accounting Supervisor | I50: 2 to 3 hours per day
A51: ID0052 | B51: Accountants | C51: Europe | D51: 63047.13088 | E51: =VLOOKUP(I51,Calc!$I$35:$J$39,2,FALSE) -> 5 | G51: UK | H51: Senior Accountant | I51: 4 to 6 hours a day
A52: ID0053 | B52: Managers | C52: Europe | D52: 30489.58654 | E52: =VLOOKUP(I52,Calc!$I$35:$J$39,2,FALSE) -> 8 | G52: Germany | H52: PPC Manager | I52: All the 8 hours baby, all the 8!
A53: ID0054 | B53: Accountants | C53: Asia | D53: 4320 | E53: =VLOOKUP(I53,Calc!$I$35:$J$39,2,FALSE) -> 2.5 | G53: India | H53: Financial Planner | I53: 2 to 3 hours per day
A54: ID0055 | B54: Analysts | C54: North America | D54: 62000 | E54: =VLOOKUP(I54,Calc!$I$35:$J$39,2,FALSE) -> 5 | G54: USA | H54: Analyst | I54: 4 to 6 hours a day
A55: ID0056 | B55: Analysts | C55: Asia | D55: 7500 | E55: =VLOOKUP(I55,Calc!$I$35:$J$39,2,FALSE) -> 5 | G55: India | H55: Analyst | I55: 4 to 6 hours a day
A56: ID0057 | B56: Managers | C56: Europe | D56: 28371.2089 | E56: =VLOOKUP(I56,Calc!$I$35:$J$39,2,FALSE) -> 1.5 | G56: UK | H56: Building Design and Performance Researcher | I56: 1 or 2 hours a day
A57: ID0058 | B57: Managers | C57: Europe | D57: 62249.57251 | E57: =VLOOKUP(I57,Calc!$I$35:$J$39,2,FALSE) -> 2.5 | G57: France | H57: Project leader | I57: 2 to 3 hours per day
A58: ID0059 | B58: Analysts | C58: North America | D58: 38000 | E58: =VLOOKUP(I58,Calc!$I$35:$J$39,2,FALSE) -> 5 | G58: USA | H58: Senior Analyst | I58: 4 to 6 hours a day
A59: ID0060 | B59: Specialists | C59: North America | D59: 41000 | E59: =VLOOKUP(I59,Calc!$I$35:$J$39,2,FALSE) -> 5 | G59: USA | H59: Specialist | I59: 4 to 6 hours a day
A60: ID0061 | B60: Analysts | C60: North America | D60: 68000 | E60: =VLOOKUP(I60,Calc!$I$35:$J$39,2,FALSE) -> 8 | G60: USA | H60: Engineering Data Analyst | I60: All the 8 hours baby, all the 8!
A61: ID0062 | B61: Analysts | C61: North America | D61: 55068.24529 | E61: =VLOOKUP(I61,Calc!$I$35:$J$39,2,FALSE) -> 8 | G61: Canada | H61: Sales Analyst | I61: All the 8 hours baby, all the 8!
A62: ID0063 | B62: Managers | C62: South America | D62: 61000 | E62: =VLOOKUP(I62,Calc!$I$35:$J$39,2,FALSE) -> 8 | G62: Brasil | H62: Coordinator Of Costa and Buget | I62: All the 8 hours baby, all the 8!
A63: ID0064 | B63: Consultants | C63: Europe | D63: 54627.17588 | E63: =VLOOKUP(I63,Calc!$I$35:$J$39,2,FALSE) -> 5 | G63: France | H63: SAP consultant | I63: 4 to 6 hours a day
A64: ID0065 | B64: Managers | C64: North America | D64: 85000 | E64: =VLOOKUP(I64,Calc!$I$35:$J$39,2,FALSE) -> 5 | G64: USA | H64: Manager | I64: 4 to 6 hours a day
A65: ID0066 | B65: Analysts | C65: Europe | D65: 48275.17868 | E65: =VLOOKUP(I65,Calc!$I$35:$J$39,2,FALSE) -> 1.5 | G65: Netherlands | H65: busines analist | I65: 1 or 2 hours a day
A66: ID0067 | B66: Top Mgmt | C66: Oceana | D66: 86692.32079 | E66: =VLOOKUP(I66,Calc!$I$35:$J$39,2,FALSE) -> 5 | G66: Australia | H66: head of data | I66: 4 to 6 hours a day
A67: ID0068 | B67: Analysts | C67: North America | D67: 85087 | E67: =VLOOKUP(I67,Calc!$I$35:$J$39,2,FALSE) -> 2.5 | G67: USA | H67: Business Systems Analyst | I67: 2 to 3 hours per day
A68: ID0069 | B68: Analysts | C68: North America | D68: 50000 | E68: =VLOOKUP(I68,Calc!$I$35:$J$39,2,FALSE) -> 8 | G68: USA | H68: Financial Analyst II | I68: All the 8 hours baby, all the 8!
A69: ID0070 | B69: Managers | C69: Africa | D69: 100000 | E69: =VLOOKUP(I69,Calc!$I$35:$J$39,2,FALSE) -> 5 | G69: South Africa | H69: Mngr MI | I69: 4 to 6 hours a day
A70: ID0071 | B70: Analysts | C70: North America | D70: 57000 | E70: =VLOOKUP(I70,Calc!$I$35:$J$39,2,FALSE) -> 5 | G70: USA | H70: sales analyst | I70: 4 to 6 hours a day
A71: ID0072 | B71: Managers | C71: North America | D71: 75000 | E71: =VLOOKUP(I71,Calc!$I$35:$J$39,2,FALSE) -> 8 | G71: USA | H71: Consumer Research Program Manager | I71: All the 8 hours baby, all the 8!
A72: ID0073 | B72: Managers | C72: Oceana | D72: 101990.9656 | E72: =VLOOKUP(I72,Calc!$I$35:$J$39,2,FALSE) -> 5 | G72: Australia | H72: technical trainer | I72: 4 to 6 hours a day
A73: ID0074 | B73: Managers | C73: Middle East | D73: 33420 | E73: =VLOOKUP(I73,Calc!$I$35:$J$39,2,FALSE) -> 8 | G73: UAE | H73: Process Flow Coordinator | I73: All the 8 hours baby, all the 8!
A74: ID0075 | B74: Specialists | C74: North America | D74: 58460.84254 | E74: =VLOOKUP(I74,Calc!$I$35:$J$39,2,FALSE) -> 8 | G74: Canada | H74: Process Improvement Specialist | I74: All the 8 hours baby, all the 8!
A75: ID0076 | B75: Consultants | C75: North America | D75: 15000 | E75: =VLOOKUP(I75,Calc!$I$35:$J$39,2,FALSE) -> 8 | G75: USA | H75: Excel Programmer Consultant | I75: All the 8 hours baby, all the 8!
A76: ID0077 | B76: Analysts | C76: North America | D76: 60000 | E76: =VLOOKUP(I76,Calc!$I$35:$J$39,2,FALSE) -> 1.5 | G76: Canada | H76: Statistical Analyst | I76: 1 or 2 hours a day
A77: ID0078 | B77: Analysts | C77: Europe | D77: 157617.8272 | E77: =VLOOKUP(I77,Calc!$I$35:$J$39,2,FALSE) -> 2.5 | G77: UK | H77: Analyst | I77: 2 to 3 hours per day
A78: ID0079 | B78: Analysts | C78: Middle East | D78: 18000 | E78: =VLOOKUP(I78,Calc!$I$35:$J$39,2,FALSE) -> 8 | G78: Saudi Arabia | H78: Operational Analyst | I78: All the 8 hours baby, all the 8!
A79: ID0080 | B79: Managers | C79: North America | D79: 50000 | E79: =VLOOKUP(I79,Calc!$I$35:$J$39,2,FALSE) -> 2.5 | G79: USA | H79: Exceler | I79: 2 to 3 hours per day
A80: ID0081 | B80: Analysts | C80: South America | D80: 26000 | E80: =VLOOKUP(I80,Calc!$I$35:$J$39,2,FALSE) -> 8 | G80: Panama | H80: Marketing Analyst | I80: All the 8 hours baby, all the 8!
A81: ID0082 | B81: Managers | C81: Europe | D81: 47285.34816 | E81: =VLOOKUP(I81,Calc!$I$35:$J$39,2,FALSE) -> 5 | G81: UK | H81: Database Manager | I81: 4 to 6 hours a day
A82: ID0083 | B82: Top Mgmt | C82: North America | D82: 150000 | E82: =VLOOKUP(I82,Calc!$I$35:$J$39,2,FALSE) -> 8 | G82: USA | H82: Director | I82: All the 8 hours baby, all the 8!
A83: ID0084 | B83: Managers | C83: North America | D83: 120000 | E83: =VLOOKUP(I83,Calc!$I$35:$J$39,2,FALSE) -> 5 | G83: USA | H83: Manager, Forecasts & Budgets | I83: 4 to 6 hours a day
A84: ID0085 | B84: Consultants | C84: Asia | D84: 8903.958344 | E84: =VLOOKUP(I84,Calc!$I$35:$J$39,2,FALSE) -> 8 | G84: India | H84: Senior Consultant | I84: All the 8 hours baby, all the 8!
A85: ID0086 | B85: Analysts | C85: South America | D85: 31330 | E85: =VLOOKUP(I85,Calc!$I$35:$J$39,2,FALSE) -> 8 | G85: Brazil | H85: VBA Analyst | I85: All the 8 hours baby, all the 8!
A86: ID0087 | B86: Engineers | C86: North America | D86: 110000 | E86: =VLOOKUP(I86,Calc!$I$35:$J$39,2,FALSE) -> 2.5 | G86: USA | H86: Senior Scheduling Engineer | I86: 2 to 3 hours per day
A87: ID0088 | B87: Consultants | C87: Europe | D87: 81000 | E87: =VLOOKUP(I87,Calc!$I$35:$J$39,2,FALSE) -> 5 | G87: UK | H87: Strategy Consultant | I87: 4 to 6 hours a day
A88: ID0089 | B88: Analysts | C88: North America | D88: 40000 | E88: =VLOOKUP(I88,Calc!$I$35:$J$39,2,FALSE) -> 5 | G88: USA | H88: Admin | I88: 4 to 6 hours a day
A89: ID0090 | B89: Analysts | C89: North America | D89: 41301.18397 | E89: =VLOOKUP(I89,Calc!$I$35:$J$39,2,FALSE) -> 5 | G89: Canada | H89: IT Asset Administrator | I89: 4 to 6 hours a day
A90: ID0091 | B90: Top Mgmt | C90: North America | D90: 125000 | E90: =VLOOKUP(I90,Calc!$I$35:$J$39,2,FALSE) -> 5 | G90: USA | H90: Director of Marketing | I90: 4 to 6 hours a day
A91: ID0092 | B91: Managers | C91: North America | D91: 36000 | E91: =VLOOKUP(I91,Calc!$I$35:$J$39,2,FALSE) -> 2.5 | G91: USA | H91: Graphic Design Manager | I91: 2 to 3 hours per day
A92: ID0093 | B92: Consultants | C92: Asia | D92: 2564.340003 | E92: =VLOOKUP(I92,Calc!$I$35:$J$39,2,FALSE) -> 1.5 | G92: India | H92: Financial Consultant | I92: 1 or 2 hours a day
A93: ID0094 | B93: Analysts | C93: North America | D93: 75000 | E93: =VLOOKUP(I93,Calc!$I$35:$J$39,2,FALSE) -> 1.5 | G93: USA | H93: Data Analyst | I93: 1 or 2 hours a day
A94: ID0095 | B94: Top Mgmt | C94: North America | D94: 95000 | E94: =VLOOKUP(I94,Calc!$I$35:$J$39,2,FALSE) -> 5 | G94: USA | H94: CFO | I94: 4 to 6 hours a day
A95: ID0096 | B95: Managers | C95: North America | D95: 24000 | E95: =VLOOKUP(I95,Calc!$I$35:$J$39,2,FALSE) -> 2.5 | G95: USA | H95: Paraeducator | I95: 2 to 3 hours per day
A96: ID0097 | B96: Managers | C96: North America | D96: 91000 | E96: =VLOOKUP(I96,Calc!$I$35:$J$39,2,FALSE) -> 1.5 | G96: USA | H96: Channel Marketing Manager | I96: 1 or 2 hours a day
A97: ID0098 | B97: Analysts | C97: North America | D97: 40000 | E97: =VLOOKUP(I97,Calc!$I$35:$J$39,2,FALSE) -> 5 | G97: USA | H97: Sales and Marketing Analyst | I97: 4 to 6 hours a day
A98: ID0099 | B98: Managers | C98: North America | D98: 57000 | E98: =VLOOKUP(I98,Calc!$I$35:$J$39,2,FALSE) -> 5 | G98: USA | H98: Production Scheduler | I98: 4 to 6 hours a day
A99: ID0100 | B99: Consultants | C99: North America | D99: 74000 | E99: =VLOOKUP(I99,Calc!$I$35:$J$39,2,FALSE) -> 5 | G99: USA | H99: Senior Consultant | I99: 4 to 6 hours a day
A100: ID0101 | B100: Analysts | C100: North America | D100: 80000 | E100: =VLOOKUP(I100,Calc!$I$35:$J$39,2,FALSE) -> 5 | G100: USA | H100: financial analyst | I100: 4 to 6 hours a day
A101: ID0102 | B101: Specialists | C101: North America | D101: 90000 | E101: =VLOOKUP(I101,Calc!$I$35:$J$39,2,FALSE) -> 5 | G101: USA | H101: Product Specialist | I101: 4 to 6 hours a day
A102: ID0103 | B102: Analysts | C102: Middle East | D102: 21000 | E102: =VLOOKUP(I102,Calc!$I$35:$J$39,2,FALSE) -> 1.5 | G102: Arabian Gulf | H102: IT support | I102: 1 or 2 hours a day
A103: ID0104 | B103: Managers | C103: North America | D103: 52000 | E103: =VLOOKUP(I103,Calc!$I$35:$J$39,2,FALSE) -> 5 | G103: USA | H103: sr. project coordinator | I103: 4 to 6 hours a day
A104: ID0105 | B104: Analysts | C104: South America | D104: 19200 | E104: =VLOOKUP(I104,Calc!$I$35:$J$39,2,FALSE) -> 5 | G104: Mexico | H104: Sr Administrative Assistant | I104: 4 to 6 hours a day
A105: ID0106 | B105: Analysts | C105: North America | D105: 36000 | E105: =VLOOKUP(I105,Calc!$I$35:$J$39,2,FALSE) -> 5 | G105: USA | H105: Analyst | I105: 4 to 6 hours a day
A106: ID0107 | B106: Analysts | C106: North America | D106: 57400 | E106: =VLOOKUP(I106,Calc!$I$35:$J$39,2,FALSE) -> 5 | G106: USA | H106: IT Analyst | I106: 4 to 6 hours a day
A107: ID0108 | B107: Analysts | C107: North America | D107: 66000 | E107: =VLOOKUP(I107,Calc!$I$35:$J$39,2,FALSE) -> 2.5 | G107: USA | H107: Analyst | I107: 2 to 3 hours per day
A108: ID0109 | B108: Managers | C108: Europe | D108: 44463.98036 | E108: =VLOOKUP(I108,Calc!$I$35:$J$39,2,FALSE) -> 5 | G108: Greece | H108: Project manager | I108: 4 to 6 hours a day
A109: ID0111 | B109: Analysts | C109: North America | D109: 85000 | E109: =VLOOKUP(I109,Calc!$I$35:$J$39,2,FALSE) -> 5 | G109: USA | H109: Strategic Analyst | I109: 4 to 6 hours a day
A110: ID0112 | B110: Specialists | C110: North America | D110: 50000 | E110: =VLOOKUP(I110,Calc!$I$35:$J$39,2,FALSE) -> 5 | G110: USA | H110: Transportation Specialist | I110: 4 to 6 hours a day
A111: ID0113 | B111: Managers | C111: North America | D111: 58000 | E111: =VLOOKUP(I111,Calc!$I$35:$J$39,2,FALSE) -> 5 | G111: USA | H111: Operations Programs Support | I111: 4 to 6 hours a day
A112: ID0114 | B112: Accountants | C112: North America | D112: 37900 | E112: =VLOOKUP(I112,Calc!$I$35:$J$39,2,FALSE) -> 8 | G112: USA | H112: Accounting Coordinator | I112: All the 8 hours baby, all the 8!
A113: ID0115 | B113: Managers | C113: Middle East | D113: 48000 | E113: =VLOOKUP(I113,Calc!$I$35:$J$39,2,FALSE) -> 2.5 | G113: UAE | H113: Asst.Manager Finance | I113: 2 to 3 hours per day
A114: ID0116 | B114: Analysts | C114: North America | D114: 67000 | E114: =VLOOKUP(I114,Calc!$I$35:$J$39,2,FALSE) -> 5 | G114: USA | H114: Operations Cost Analyst | I114: 4 to 6 hours a day
A115: ID0117 | B115: Controllers | C115: Middle East | D115: 85000 | E115: =VLOOKUP(I115,Calc!$I$35:$J$39,2,FALSE) -> 5 | G115: UAE | H115: Financial Controller | I115: 4 to 6 hours a day
A116: ID0118 | B116: Analysts | C116: North America | D116: 56160 | E116: =VLOOKUP(I116,Calc!$I$35:$J$39,2,FALSE) -> 5 | G116: USA | H116: Utilization Analyst | I116: 4 to 6 hours a day
A117: ID0119 | B117: Managers | C117: South America | D117: 24000 | E117: =VLOOKUP(I117,Calc!$I$35:$J$39,2,FALSE) -> 8 | G117: Colombia | H117: Researcher | I117: All the 8 hours baby, all the 8!
A118: ID0120 | B118: Analysts | C118: North America | D118: 52000 | E118: =VLOOKUP(I118,Calc!$I$35:$J$39,2,FALSE) -> 0 | G118: USA | H118: Market Analyst | I118: Excel ?!? What Excel?
A119: ID0121 | B119: Analysts | C119: North America | D119: 59001.69138 | E119: =VLOOKUP(I119,Calc!$I$35:$J$39,2,FALSE) -> 0 | G119: Canada | H119: Web Developer | I119: Excel ?!? What Excel?
A120: ID0122 | B120: Accountants | C120: North America | D120: 70000 | E120: =VLOOKUP(I120,Calc!$I$35:$J$39,2,FALSE) -> 8 | G120: USA | H120: Sr. Acct | I120: All the 8 hours baby, all the 8!
A121: ID0123 | B121: Specialists | C121: North America | D121: 50000 | E121: =VLOOKUP(I121,Calc!$I$35:$J$39,2,FALSE) -> 5 | G121: USA | H121: Information Systems Specialist | I121: 4 to 6 hours a day
A122: ID0124 | B122: Analysts | C122: Asia | D122: 40958.20838 | E122: =VLOOKUP(I122,Calc!$I$35:$J$39,2,FALSE) -> 1.5 | G122: India | H122: Analytics lead | I122: 1 or 2 hours a day
A123: ID0125 | B123: Analysts | C123: North America | D123: 80000 | E123: =VLOOKUP(I123,Calc!$I$35:$J$39,2,FALSE) -> 5 | G123: USA | H123: Financial Analyst | I123: 4 to 6 hours a day
A124: ID0126 | B124: Managers | C124: North America | D124: 128000 | E124: =VLOOKUP(I124,Calc!$I$35:$J$39,2,FALSE) -> 8 | G124: USA | H124: Actuary | I124: All the 8 hours baby, all the 8!
A125: ID0127 | B125: Managers | C125: North America | D125: 44000 | E125: =VLOOKUP(I125,Calc!$I$35:$J$39,2,FALSE) -> 1.5 | G125: USA | H125: School Tech Coordinator | I125: 1 or 2 hours a day
A126: ID0128 | B126: Accountants | C126: North America | D126: 65000 | E126: =VLOOKUP(I126,Calc!$I$35:$J$39,2,FALSE) -> 8 | G126: USA | H126: sr accountant | I126: All the 8 hours baby, all the 8!
A127: ID0129 | B127: Accountants | C127: Europe | D127: 36000 | E127: =VLOOKUP(I127,Calc!$I$35:$J$39,2,FALSE) -> 5 | G127: Turkey | H127: senior accountant | I127: 4 to 6 hours a day
A128: ID0130 | B128: Consultants | C128: Asia | D128: 12000 | E128: =VLOOKUP(I128,Calc!$I$35:$J$39,2,FALSE) -> 1.5 | G128: Pakistan | H128: Freelance | I128: 1 or 2 hours a day
A129: ID0131 | B129: Analysts | C129: Europe | D129: 44383.60396 | E129: =VLOOKUP(I129,Calc!$I$35:$J$39,2,FALSE) -> 8 | G129: UK | H129: Data Analyst | I129: All the 8 hours baby, all the 8!
A130: ID0132 | B130: Analysts | C130: North America | D130: 45000 | E130: =VLOOKUP(I130,Calc!$I$35:$J$39,2,FALSE) -> 5 | G130: USA | H130: DBA | I130: 4 to 6 hours a day
A131: ID0133 | B131: Analysts | C131: North America | D131: 54000 | E131: =VLOOKUP(I131,Calc!$I$35:$J$39,2,FALSE) -> 2.5 | G131: USA | H131: Research Analyst | I131: 2 to 3 hours per day
A132: ID0134 | B132: Managers | C132: Europe | D132: 110332.479 | E132: =VLOOKUP(I132,Calc!$I$35:$J$39,2,FALSE) -> 2.5 | G132: UK | H132: Project Manager | I132: 2 to 3 hours per day
A133: ID0135 | B133: Analysts | C133: North America | D133: 71000 | E133: =VLOOKUP(I133,Calc!$I$35:$J$39,2,FALSE) -> 5 | G133: USA | H133: Market Research Analyst | I133: 4 to 6 hours a day
A134: ID0136 | B134: Managers | C134: Asia | D134: 14246.33335 | E134: =VLOOKUP(I134,Calc!$I$35:$J$39,2,FALSE) -> 2.5 | G134: India | H134: Manager : Accounts | I134: 2 to 3 hours per day
A135: ID0137 | B135: Managers | C135: North America | D135: 68835.30661 | E135: =VLOOKUP(I135,Calc!$I$35:$J$39,2,FALSE) -> 5 | G135: Canada | H135: project manager | I135: 4 to 6 hours a day
A136: ID0138 | B136: Managers | C136: North America | D136: 49168.07615 | E136: =VLOOKUP(I136,Calc!$I$35:$J$39,2,FALSE) -> 5 | G136: Canada | H136: Inventory manger | I136: 4 to 6 hours a day
A137: ID0139 | B137: Analysts | C137: North America | D137: 40000 | E137: =VLOOKUP(I137,Calc!$I$35:$J$39,2,FALSE) -> 5 | G137: USA | H137: Business Analyst | I137: 4 to 6 hours a day
A138: ID0140 | B138: Analysts | C138: North America | D138: 60968.41443 | E138: =VLOOKUP(I138,Calc!$I$35:$J$39,2,FALSE) -> 2.5 | G138: Canada | H138: Process Technician | I138: 2 to 3 hours per day
A139: ID0141 | B139: Reporting | C139: Asia | D139: 5983.460007 | E139: =VLOOKUP(I139,Calc!$I$35:$J$39,2,FALSE) -> 5 | G139: India | H139: MIS Team Leader | I139: 4 to 6 hours a day
A140: ID0142 | B140: Analysts | C140: North America | D140: 53000 | E140: =VLOOKUP(I140,Calc!$I$35:$J$39,2,FALSE) -> 5 | G140: USA | H140: Data Analyst | I140: 4 to 6 hours a day
A141: ID0143 | B141: Top Mgmt | C141: North America | D141: 104000 | E141: =VLOOKUP(I141,Calc!$I$35:$J$39,2,FALSE) -> 2.5 | G141: USA | H141: Finance Director | I141: 2 to 3 hours per day
A142: ID0144 | B142: Engineers | C142: North America | D142: 57000 | E142: =VLOOKUP(I142,Calc!$I$35:$J$39,2,FALSE) -> 5 | G142: USA | H142: Industrial Engineer | I142: 4 to 6 hours a day
A143: ID0145 | B143: Analysts | C143: North America | D143: 45000 | E143: =VLOOKUP(I143,Calc!$I$35:$J$39,2,FALSE) -> 2.5 | G143: USA | H143: data analyst | I143: 2 to 3 hours per day
A144: ID0146 | B144: Analysts | C144: North America | D144: 92000 | E144: =VLOOKUP(I144,Calc!$I$35:$J$39,2,FALSE) -> 5 | G144: USA | H144: Senior Financial & Systems Analyst | I144: 4 to 6 hours a day
A145: ID0147 | B145: Managers | C145: North America | D145: 88000 | E145: =VLOOKUP(I145,Calc!$I$35:$J$39,2,FALSE) -> 5 | G145: USA | H145: project manager - metrics | I145: 4 to 6 hours a day
A146: ID0148 | B146: Analysts | C146: North America | D146: 80000 | E146: =VLOOKUP(I146,Calc!$I$35:$J$39,2,FALSE) -> 2.5 | G146: USA | H146: Informatics Research Analyst | I146: 2 to 3 hours per day
A147: ID0149 | B147: Consultants | C147: North America | D147: 69000 | E147: =VLOOKUP(I147,Calc!$I$35:$J$39,2,FALSE) -> 5 | G147: USA | H147: Business Technical Consultant | I147: 4 to 6 hours a day
A148: ID0150 | B148: Analysts | C148: South America | D148: 50000 | E148: =VLOOKUP(I148,Calc!$I$35:$J$39,2,FALSE) -> 8 | G148: Mexico | H148: Business Operations Reporting Analyst | I148: All the 8 hours baby, all the 8!
A149: ID0151 | B149: Managers | C149: North America | D149: 35000 | E149: =VLOOKUP(I149,Calc!$I$35:$J$39,2,FALSE) -> 2.5 | G149: USA | H149: Program Services Coordinator | I149: 2 to 3 hours per day
A150: ID0152 | B150: Analysts | C150: North America | D150: 96000 | E150: =VLOOKUP(I150,Calc!$I$35:$J$39,2,FALSE) -> 5 | G150: USA | H150: Specialist - Finance Planning and Analysis | I150: 4 to 6 hours a day
A151: ID0153 | B151: Accountants | C151: North America | D151: 65000 | E151: =VLOOKUP(I151,Calc!$I$35:$J$39,2,FALSE) -> 8 | G151: USA | H151: Sr Accountant | I151: All the 8 hours baby, all the 8!
A152: ID0154 | B152: Analysts | C152: North America | D152: 37440 | E152: =VLOOKUP(I152,Calc!$I$35:$J$39,2,FALSE) -> 8 | G152: USA | H152: sales analyst | I152: All the 8 hours baby, all the 8!
A153: ID0155 | B153: Accountants | C153: South America | D153: 15500 | E153: =VLOOKUP(I153,Calc!$I$35:$J$39,2,FALSE) -> 8 | G153: Mexico | H153: Proces auditor | I153: All the 8 hours baby, all the 8!
A154: ID0156 | B154: Analysts | C154: North America | D154: 90000 | E154: =VLOOKUP(I154,Calc!$I$35:$J$39,2,FALSE) -> 2.5 | G154: USA | H154: Senior Data Quality Analyst | I154: 2 to 3 hours per day
A155: ID0157 | B155: Analysts | C155: North America | D155: 66500 | E155: =VLOOKUP(I155,Calc!$I$35:$J$39,2,FALSE) -> 8 | G155: USA | H155: Sr Business Analyst | I155: All the 8 hours baby, all the 8!
A156: ID0158 | B156: Accountants | C156: North America | D156: 100000 | E156: =VLOOKUP(I156,Calc!$I$35:$J$39,2,FALSE) -> 8 | G156: USA | H156: COST ACCOUNTANT | I156: All the 8 hours baby, all the 8!
A157: ID0159 | B157: Managers | C157: Europe | D157: 50831.74927 | E157: =VLOOKUP(I157,Calc!$I$35:$J$39,2,FALSE) -> 5 | G157: UK | H157: project Support | I157: 4 to 6 hours a day
A158: ID0160 | B158: Managers | C158: Asia | D158: 7479.325009 | E158: =VLOOKUP(I158,Calc!$I$35:$J$39,2,FALSE) -> 1.5 | G158: India | H158: managerial | I158: 1 or 2 hours a day
A159: ID0161 | B159: Analysts | C159: North America | D159: 75000 | E159: =VLOOKUP(I159,Calc!$I$35:$J$39,2,FALSE) -> 1.5 | G159: USA | H159: Program Analyst | I159: 1 or 2 hours a day
A160: ID0162 | B160: Managers | C160: North America | D160: 58000 | E160: =VLOOKUP(I160,Calc!$I$35:$J$39,2,FALSE) -> 1.5 | G160: Canada | H160: Team Lead - Computer Discounts | I160: 1 or 2 hours a day
A161: ID0163 | B161: Managers | C161: North America | D161: 55000 | E161: =VLOOKUP(I161,Calc!$I$35:$J$39,2,FALSE) -> 2.5 | G161: USA | H161: Change Architect | I161: 2 to 3 hours per day
A162: ID0164 | B162: Analysts | C162: North America | D162: 60000 | E162: =VLOOKUP(I162,Calc!$I$35:$J$39,2,FALSE) -> 5 | G162: USA | H162: Telecom Technician | I162: 4 to 6 hours a day
A163: ID0165 | B163: Managers | C163: Asia | D163: 23150.29169 | E163: =VLOOKUP(I163,Calc!$I$35:$J$39,2,FALSE) -> 5 | G163: India | H163: Manager | I163: 4 to 6 hours a day
A164: ID0166 | B164: Managers | C164: North America | D164: 105219.683 | E164: =VLOOKUP(I164,Calc!$I$35:$J$39,2,FALSE) -> 2.5 | G164: Canada | H164: Manager, Asset Optimization | I164: 2 to 3 hours per day
A165: ID0167 | B165: Controllers | C165: Europe | D165: 145000 | E165: =VLOOKUP(I165,Calc!$I$35:$J$39,2,FALSE) -> 8 | G165: Switzerland | H165: Financialcontroller | I165: All the 8 hours baby, all the 8!
A166: ID0168 | B166: Accountants | C166: North America | D166: 22880 | E166: =VLOOKUP(I166,Calc!$I$35:$J$39,2,FALSE) -> 5 | G166: USA | H166: Accounting | I166: 4 to 6 hours a day
A167: ID0169 | B167: Consultants | C167: North America | D167: 80000 | E167: =VLOOKUP(I167,Calc!$I$35:$J$39,2,FALSE) -> 5 | G167: USA | H167: Consultant, HR Services & Governance | I167: 4 to 6 hours a day
A168: ID0170 | B168: Analysts | C168: Asia | D168: 8903.958344 | E168: =VLOOKUP(I168,Calc!$I$35:$J$39,2,FALSE) -> 2.5 | G168: India | H168: QA Executive | I168: 2 to 3 hours per day
A169: ID0171 | B169: Analysts | C169: North America | D169: 88502.53707 | E169: =VLOOKUP(I169,Calc!$I$35:$J$39,2,FALSE) -> 5 | G169: Canada | H169: Senior Actuarial Analyst | I169: 4 to 6 hours a day
A170: ID0172 | B170: Analysts | C170: Asia | D170: 3205.425004 | E170: =VLOOKUP(I170,Calc!$I$35:$J$39,2,FALSE) -> 5 | G170: India | H170: Sr. Associate | I170: 4 to 6 hours a day
A171: ID0173 | B171: Analysts | C171: North America | D171: 46584 | E171: =VLOOKUP(I171,Calc!$I$35:$J$39,2,FALSE) -> 5 | G171: USA | H171: Budget Analyst | I171: 4 to 6 hours a day
A172: ID0174 | B172: Analysts | C172: North America | D172: 67000 | E172: =VLOOKUP(I172,Calc!$I$35:$J$39,2,FALSE) -> 5 | G172: USA | H172: B.I. Data Analyst II | I172: 4 to 6 hours a day
A173: ID0175 | B173: Managers | C173: Asia | D173: 19588.70836 | E173: =VLOOKUP(I173,Calc!$I$35:$J$39,2,FALSE) -> 5 | G173: India | H173: Asst manager investor relations and business analytics | I173: 4 to 6 hours a day
A174: ID0176 | B174: Engineers | C174: North America | D174: 92000 | E174: =VLOOKUP(I174,Calc!$I$35:$J$39,2,FALSE) -> 5 | G174: USA | H174: Industrial Engineer (Fed) | I174: 4 to 6 hours a day
A175: ID0177 | B175: Specialists | C175: North America | D175: 75000 | E175: =VLOOKUP(I175,Calc!$I$35:$J$39,2,FALSE) -> 8 | G175: USA | H175: Informatics specialist | I175: All the 8 hours baby, all the 8!
A176: ID0178 | B176: Analysts | C176: Asia | D176: 3205.425004 | E176: =VLOOKUP(I176,Calc!$I$35:$J$39,2,FALSE) -> 5 | G176: India | H176: Sr. Associate | I176: 4 to 6 hours a day
A177: ID0179 | B177: Managers | C177: Europe | D177: 29159.29803 | E177: =VLOOKUP(I177,Calc!$I$35:$J$39,2,FALSE) -> 8 | G177: UK | H177: Trainee Management Accountant | I177: All the 8 hours baby, all the 8!
A178: ID0180 | B178: Analysts | C178: North America | D178: 40000 | E178: =VLOOKUP(I178,Calc!$I$35:$J$39,2,FALSE) -> 8 | G178: USA | H178: Senior analyst | I178: All the 8 hours baby, all the 8!
A179: ID0181 | B179: Analysts | C179: North America | D179: 111680 | E179: =VLOOKUP(I179,Calc!$I$35:$J$39,2,FALSE) -> 2.5 | G179: USA | H179: Director of Analytics | I179: 2 to 3 hours per day
A180: ID0182 | B180: Analysts | C180: North America | D180: 41406 | E180: =VLOOKUP(I180,Calc!$I$35:$J$39,2,FALSE) -> 1.5 | G180: Canada | H180: Executive Assistant | I180: 1 or 2 hours a day
A181: ID0183 | B181: Managers | C181: North America | D181: 70000 | E181: =VLOOKUP(I181,Calc!$I$35:$J$39,2,FALSE) -> 5 | G181: USA | H181: Project Speciast | I181: 4 to 6 hours a day
A182: ID0184 | B182: Analysts | C182: North America | D182: 40700 | E182: =VLOOKUP(I182,Calc!$I$35:$J$39,2,FALSE) -> 1.5 | G182: USA | H182: Sales Coordinator & Analytical Support | I182: 1 or 2 hours a day
A183: ID0185 | B183: Analysts | C183: North America | D183: 40000 | E183: =VLOOKUP(I183,Calc!$I$35:$J$39,2,FALSE) -> 5 | G183: USA | H183: analyst | I183: 4 to 6 hours a day
A184: ID0186 | B184: Accountants | C184: North America | D184: 60000 | E184: =VLOOKUP(I184,Calc!$I$35:$J$39,2,FALSE) -> 5 | G184: USA | H184: Senior Staff Accountant | I184: 4 to 6 hours a day
A185: ID0187 | B185: Consultants | C185: North America | D185: 90469.26012 | E185: =VLOOKUP(I185,Calc!$I$35:$J$39,2,FALSE) -> 8 | G185: Canada | H185: Consultant - Retail Mkts | I185: All the 8 hours baby, all the 8!
A186: ID0188 | B186: Managers | C186: Asia | D186: 13636 | E186: =VLOOKUP(I186,Calc!$I$35:$J$39,2,FALSE) -> 8 | G186: India | H186: Process Manager | I186: All the 8 hours baby, all the 8!
A187: ID0189 | B187: Managers | C187: North America | D187: 80000 | E187: =VLOOKUP(I187,Calc!$I$35:$J$39,2,FALSE) -> 2.5 | G187: USA | H187: Project Manager (Process Owner) | I187: 2 to 3 hours per day
A188: ID0190 | B188: Analysts | C188: North America | D188: 59001.69138 | E188: =VLOOKUP(I188,Calc!$I$35:$J$39,2,FALSE) -> 2.5 | G188: Canada | H188: Demographer | I188: 2 to 3 hours per day
A189: ID0192 | B189: Analysts | C189: North America | D189: 28000 | E189: =VLOOKUP(I189,Calc!$I$35:$J$39,2,FALSE) -> 5 | G189: USA | H189: Administrative Assistant | I189: 4 to 6 hours a day
A190: ID0193 | B190: Analysts | C190: North America | D190: 60000 | E190: =VLOOKUP(I190,Calc!$I$35:$J$39,2,FALSE) -> 5 | G190: USA | H190: Accounting/Financial Analyst | I190: 4 to 6 hours a day
A191: ID0194 | B191: Specialists | C191: North America | D191: 96000 | E191: =VLOOKUP(I191,Calc!$I$35:$J$39,2,FALSE) -> 2.5 | G191: USA | H191: Business Process Specialist | I191: 2 to 3 hours per day
A192: ID0195 | B192: Analysts | C192: North America | D192: 67000 | E192: =VLOOKUP(I192,Calc!$I$35:$J$39,2,FALSE) -> 5 | G192: USA | H192: Financial Analyst | I192: 4 to 6 hours a day
A193: ID0196 | B193: Analysts | C193: North America | D193: 70000 | E193: =VLOOKUP(I193,Calc!$I$35:$J$39,2,FALSE) -> 5 | G193: USA | H193: Sr Financial Analyst | I193: 4 to 6 hours a day
A194: ID0197 | B194: Managers | C194: Asia | D194: 4149.244588 | E194: =VLOOKUP(I194,Calc!$I$35:$J$39,2,FALSE) -> 8 | G194: India | H194: Asst. Manager (MIS) | I194: All the 8 hours baby, all the 8!
A195: ID0198 | B195: Controllers | C195: North America | D195: 99000 | E195: =VLOOKUP(I195,Calc!$I$35:$J$39,2,FALSE) -> 5 | G195: USA | H195: Business Controller | I195: 4 to 6 hours a day
A196: ID0200 | B196: Managers | C196: North America | D196: 90000 | E196: =VLOOKUP(I196,Calc!$I$35:$J$39,2,FALSE) -> 2.5 | G196: USA | H196: Project Manager | I196: 2 to 3 hours per day
A197: ID0201 | B197: Analysts | C197: Asia | D197: 4897.177089 | E197: =VLOOKUP(I197,Calc!$I$35:$J$39,2,FALSE) -> 2.5 | G197: India | H197: low level monitoring | I197: 2 to 3 hours per day
A198: ID0202 | B198: Analysts | C198: Asia | D198: 3419.120004 | E198: =VLOOKUP(I198,Calc!$I$35:$J$39,2,FALSE) -> 8 | G198: India | H198: Administrative | I198: All the 8 hours baby, all the 8!
A199: ID0203 | B199: Managers | C199: North America | D199: 51000 | E199: =VLOOKUP(I199,Calc!$I$35:$J$39,2,FALSE) -> 5 | G199: USA | H199: Service Line Coordinator | I199: 4 to 6 hours a day
A200: ID0204 | B200: Managers | C200: North America | D200: 100000 | E200: =VLOOKUP(I200,Calc!$I$35:$J$39,2,FALSE) -> 8 | G200: USA | H200: Strategic Sourcing Manager | I200: All the 8 hours baby, all the 8!
... 1684 more rows

Sheet xyData
A1: Salary in USD | B1: Years of Experience
A2: 54000 | B2: 5
A3: 15600 | B3: 20
A4: 35000 | B4: 7
A5: 188000 | B5: 20
A6: 27500 | B6: 1
A7: 140000 | B7: 10
A8: 69871.96914 | B8: 6
A9: 45000 | B9: 2
A10: 95000 | B10: 11
A11: 158085.9967 | B11: 20
A12: 63807.04749 | B12: 23
A13: 38000 | B13: 11
A14: 90000 | B14: 6
A15: 45393.93424 | B15: 27
A16: 33099.74371 | B16: 10
A17: 4285 | B17: 6
A18: 6000 | B18: 20
A19: 22438.01244 | B19: 8
A20: 90000 | B20: 15
A21: 150000 | B21: 22
A22: 132588.2553 | B22: 27
A23: 45000 | B23: 3
A24: 50000 | B24: 10
A25: 300000 | B25: 30
A26: 104030.785 | B26: 10
A27: 115000 | B27: 15
A28: 70000 | B28: 3
A29: 108110.4236 | B29: 16
A30: 75000 | B30: 25
A31: 40414 | B31: 8
A32: 65000 | B32: 3
A33: 120000 | B33: 7
A34: 15092.18021 | B34: 10
A35: 36000 | B35: 10
A36: 63519.97195 | B36: 4
A37: 108000 | B37: 7
A38: 75000 | B38: 5
A39: 7123.166675 | B39: 3
A40: 50000 | B40: 25
A41: 45000 | B41: 15
A42: 45000 | B42: 7
A43: 90000 | B43: 20
A44: 4273.900005 | B44: 5
A45: 50000 | B45: 10
A46: 65000 | B46: 17
A47: 70000 | B47: 18
A48: 160000 | B48: 5
A49: 101990.9656 | B49: 20
A50: 6767.008341 | B50: 10
A51: 30000 | B51: 8
A52: 7479.325009 | B52: 3
A53: 61000 | B53: 5
A54: 13800 | B54: 20
A55: 15136.72918 | B55: 6
A56: 32054.25004 | B56: 10
A57: 80000 | B57: 15
A58: 21000 | B58: 23
A59: 245840.3808 | B59: 32
A60: 2849.26667 | B60: 3
A61: 8400 | B61: 26
A62: 86692.32079 | B62: 20
A63: 50000 | B63: 20
A64: 4000 | B64: 6
A65: 101990.9656 | B65: 1
A66: 95000 | B66: 10
A67: 10000 | B67: 5
A68: 4200 | B68: 4
A69: 12821.70001 | B69: 12
A70: 39000 | B70: 3
A71: 60000 | B71: 12
A72: 173384.6416 | B72: 10
A73: 125000 | B73: 20
A74: 79552.9532 | B74: 4
A75: 3561.583337 | B75: 3
A76: 80000 | B76: 8
A77: 10684.75001 | B77: 3
A78: 5342.375006 | B78: 2
A79: 71231.66675 | B79: 1.5
A80: 80135.62509 | B80: 6
A81: 54084.88377 | B81: 5
A82: 53000 | B82: 30
A83: 5342.375006 | B83: 1
A84: 7123.166675 | B84: 5
A85: 10684.75001 | B85: 11
A86: 4000 | B86: 4
A87: 8000 | B87: 1
A88: 2671.187503 | B88: 5
A89: 14246.33335 | B89: 3
A90: 8547.80001 | B90: 3
A91: 7693.020009 | B91: 5
A92: 4000 | B92: 8
A93: 5400 | B93: 3
A94: 186983.1252 | B94: 10
A95: 21500 | B95: 9
A96: 15000 | B96: 2
A97: 2122.817743 | B97: 2
A98: 16917.52085 | B98: 3
A99: 2938.306253 | B99: 11
A100: 16800 | B100: 12
A101: 37000 | B101: 10
A102: 5342.375006 | B102: 4.5
A103: 3561.583337 | B103: 3
A104: 8547.80001 | B104: 8
A105: 5800 | B105: 8
A106: 4095.820838 | B106: 3
A107: 4914.985006 | B107: 3
A108: 24000 | B108: 12
A109: 24000 | B109: 15
A110: 8738 | B110: 7.3
A111: 15000 | B111: 1
A112: 56400 | B112: 6
A113: 10200 | B113: 4.5
A114: 5787.572923 | B114: 4.5
A115: 105000 | B115: 15
A116: 4451.979172 | B116: 5
A117: 8369.720843 | B117: 4
A118: 17067.63763 | B118: 9
A119: 101990.9656 | B119: 20
A120: 3917.741671 | B120: 3
A121: 52000 | B121: 18
A122: 4630.058339 | B122: 2
A123: 2136.950002 | B123: 3
A124: 13000 | B124: 4
A125: 2564.340003 | B125: 7
A126: 20479.10419 | B126: 7
A127: 33500 | B127: 10
A128: 50000 | B128: 20
A129: 5342.375006 | B129: 3
A130: 11539.53001 | B130: 2
A131: 7000 | B131: 23
A132: 6767.008341 | B132: 6
A133: 3000 | B133: 2
A134: 4451.979172 | B134: 4
A135: 2671.187503 | B135: 4.5
A136: 4957.724006 | B136: 5
A137: 3205.425004 | B137: 14
A138: 14246.33335 | B138: 7
A139: 5342.375006 | B139: 7
A140: 6588.929174 | B140: 2
A141: 6588.929174 | B141: 2
A142: 35000 | B142: 10
A143: 12821.70001 | B143: 4
A144: 10684.75001 | B144: 2
A145: 10000 | B145: 2
A146: 2136.950002 | B146: 0
A147: 8547.80001 | B147: 4
A148: 8013.562509 | B148: 8
A149: 7123.166675 | B149: 0
A150: 40958.20838 | B150: 5
A151: 11325.83501 | B151: 2
A152: 15000 | B152: 2
A153: 12000 | B153: 12
A154: 8903.958344 | B154: 1
A155: 8903.958344 | B155: 2
A156: 12821.70001 | B156: 10
A157: 3205.425004 | B157: 7
A158: 6677.968758 | B158: 6
A159: 67794.98796 | B159: 15
A160: 31250 | B160: 6
A161: 2165.274098 | B161: 2
A162: 7123.166675 | B162: 4
A163: 130000 | B163: 3
A164: 4451.979172 | B164: 6
A165: 9600 | B165: 2
A166: 6945.087508 | B166: 1
A167: 10684.75001 | B167: 7
A168: 8547.80001 | B168: 3.5
A169: 35000 | B169: 10
A170: 17807.91669 | B170: 12
A171: 3205.425004 | B171: 4
A172: 60000 | B172: 10
A173: 14246.33335 | B173: 13
A174: 10684.75001 | B174: 8
A175: 40000 | B175: 15
A176: 5022 | B176: 15
A177: 7301.245842 | B177: 5
A178: 19831.43282 | B178: 5
A179: 10684.75001 | B179: 5
A180: 4800 | B180: 2
A181: 83846.36297 | B181: 7
A182: 15000 | B182: 2
A183: 10000 | B183: 12
A184: 116637.1921 | B184: 5
A185: 34357.53397 | B185: 1.5
A186: 102451.5877 | B186: 15
A187: 16000 | B187: 5
A188: 6000 | B188: 6
A189: 6410.850007 | B189: 6
A190: 36000 | B190: 7
A191: 20000 | B191: 7
A192: 4273.900005 | B192: 8
A193: 37828.27853 | B193: 8
A194: 11000 | B194: 4.5
A195: 8000 | B195: 6
A196: 4006.781255 | B196: 5.5
A197: 9171.032357 | B197: 5
A198: 4273.900005 | B198: 20
A199: 12465.54168 | B199: 5
A200: 24000 | B200: 1
... 1136 more rows
